fUST/lending_fUST_20240904
["ID","MTS","AMOUNT","RATE_DAILY","PERIOD"]
[337089299,1725420659926,-500.0,0.00027945,2]
[337089300,1725420659937,-1011.35,0.00027945,2]
[337089301,1725420659947,-2862.9,0.00027945,2]
[337089302,1725420659959,-508.15409597,0.00027945,2]
[337089303,1725420659969,-2987.56,0.00027945,2]
[337089304,1725420659979,-500.0,0.00027945,2]
[337089305,1725420659988,-500.0,0.00027945,2]
[337089306,1725420660000,-500.0,0.00027945,2]
[337089307,1725420660010,-251.939364,0.00027945,2]
[337089308,1725420660020,-3402.81,0.00027945,2]
[337089309,1725420660030,-500.0,0.00027945,2]
[337089310,1725420660040,-1811.33,0.00027945,2]
[337089311,1725420660050,-513.55039734,0.00027945,2]
[337089312,1725420660060,-500.0,0.00027945,2]
[337089313,1725420660070,-500.0,0.00027945,2]
[337089314,1725420660080,-492.26396408,0.00027945,2]
[337089315,1725420660089,-262.4303417,0.00027945,2]
[337089316,1725420660099,-612.22,0.00027945,2]
[337089317,1725420660110,-1243.1,0.00027945,2]
[337089318,1725420660121,-717.23,0.00027945,2]
[337089319,1725420660131,-4418.31,0.00027945,2]
[337089320,1725420660140,-500.0,0.00027945,2]
[337089321,1725420660150,-604.73822318,0.00027945,2]
[337089322,1725420660160,-115684.14,0.00027945,2]
[337089323,1725420660169,-55826.22,0.00027945,2]
[337089324,1725420660179,-292.42747969,0.00027945,2]
[337089325,1725420660189,-500.0,0.00027945,2]
[337089326,1725420660199,-500.0,0.00027945,2]
[337089327,1725420660209,-500.0,0.00027945,2]
[337089328,1725420660218,-500.0,0.00027945,2]
[337089329,1725420660228,-500.0,0.00027945,2]
[337089330,1725420660238,-500.0,0.00027945,2]
[337089331,1725420660248,-500.0,0.00027945,2]
[337089332,1725420660258,-500.0,0.00027945,2]
[337089333,1725420660269,-6301.07,0.00027945,2]
[337089334,1725420660356,-26324.52,0.00027945,2]
[337089335,1725420660372,-636.47,0.00027945,2]
[337089336,1725420660387,-500.0,0.00027945,2]
[337089337,1725420660396,-1916.51,0.00027945,2]
[337089338,1725420660407,-500.0,0.00027945,2]
[337089339,1725420660416,-500.0,0.00027945,2]
[337089340,1725420660427,-823.36,0.00027945,2]
[337089341,1725420660438,-617.81,0.00027945,2]
[337089342,1725420660448,-1701.17,0.00027945,2]
[337089343,1725420660459,-729.84,0.00027945,2]
[337089344,1725420660468,-500.0,0.00027945,2]
[337089345,1725420660478,-500.0,0.00027945,2]
[337089346,1725420660487,-500.0,0.00027945,2]
[337089347,1725420660497,-500.0,0.00027945,2]
[337089348,1725420660507,-712.75,0.00027945,2]
[337089349,1725420660516,-500.0,0.00027945,2]
[337089350,1725420660526,-500.0,0.00027945,2]
[337089351,1725420660536,-500.0,0.00027945,2]
[337089352,1725420660546,-500.0,0.00027945,2]
[337089353,1725420660556,-500.0,0.00027945,2]
[337089354,1725420660565,-1160.46,0.00027945,2]
[337089355,1725420660574,-1329.1,0.00027945,2]
[337089356,1725420660584,-1898.01,0.00027945,2]
[337089357,1725420660595,-500.0,0.00027945,2]
[337089358,1725420660606,-2729.74,0.00027945,2]
[337089359,1725420660617,-500.0,0.00027945,2]
[337089360,1725420660629,-500.0,0.00027945,2]
[337089361,1725420660639,-500.0,0.00027945,2]
[337089362,1725420660649,-2159.38,0.00027945,2]
[337089363,1725420660659,-508.06703166,0.00027945,2]
[337089364,1725420660671,-1592.01,0.00027945,2]
[337089365,1725420660681,-500.0,0.00027945,2]
[337089366,1725420660691,-6188.78,0.00027945,2]
[337089367,1725420660701,-500.0,0.00027945,2]
[337089368,1725420660713,-4210.31,0.00027945,2]
[337089369,1725420660723,-1529.25,0.00027945,2]
[337089370,1725420660734,-729.82,0.00027945,2]
[337089371,1725420660746,-10461.88,0.00027945,2]
[337089372,1725420660755,-500.0,0.00027945,2]
[337089373,1725420660764,-1560.58,0.00027945,2]
[337089374,1725420660773,-1280.26,0.00027945,2]
[337089375,1725420660784,-7136.97,0.00027945,2]
[337089376,1725420660795,-500.0,0.00027945,2]
[337089377,1725420660804,-500.0,0.00027945,2]
[337089378,1725420660815,-500.0,0.00027945,2]
[337089379,1725420660825,-500.0,0.00027945,2]
[337089380,1725420660836,-500.0,0.00027945,2]
[337089381,1725420660846,-1328.68,0.00027945,2]
[337089382,1725420660857,-929.51,0.00027945,2]
[337089383,1725420660867,-3077.96,0.00027945,2]
[337089384,1725420660878,-683.0,0.00027945,2]
[337089385,1725420660888,-500.0,0.00027945,2]
[337089386,1725420660900,-11939.04,0.00027945,2]
[337089387,1725420660909,-500.0,0.00027945,2]
[337089388,1725420660919,-500.0,0.00027945,2]
[337089389,1725420660928,-500.0,0.00027945,2]
[337089390,1725420660937,-1182.99,0.00027945,2]
[337089391,1725420660949,-1259.14,0.00027945,2]
[337089392,1725420660959,-402.4391962,0.00027945,2]
[337089393,1725420660969,-500.0,0.00027945,2]
[337089394,1725420660980,-13600.34,0.00027945,2]
[337089395,1725420660990,-500.0,0.00027945,2]
[337089396,1725420661008,-1155.31,0.00027945,2]
[337089397,1725420661019,-500.0,0.00027945,2]
[337089398,1725420661030,-851.0,0.00027945,2]
[337089399,1725420661041,-500.0,0.00027945,2]
[337089400,1725420661052,-1763.89,0.00027945,2]
[337089401,1725420661063,-756.04,0.00027945,2]
[337089402,1725420661072,-500.0,0.00027945,2]
[337089403,1725420661083,-652.71,0.00027945,2]
[337089404,1725420661095,-647.88,0.00027945,2]
[337089405,1725420661105,-500.0,0.00027945,2]
[337089406,1725420661115,-4853.04,0.00027945,2]
[337089407,1725420661125,-963.22,0.00027945,2]
[337089408,1725420661135,-500.0,0.00027945,2]
[337089409,1725420661147,-1079.72,0.00027945,2]
[337089410,1725420661158,-500.0,0.00027945,2]
[337089411,1725420661167,-500.0,0.00027945,2]
[337089412,1725420661177,-500.0,0.00027945,2]
[337089413,1725420661189,-500.0,0.00027945,2]
[337089414,1725420661198,-500.0,0.00027945,2]
[337089415,1725420661209,-509.72444671,0.00027945,2]
[337089416,1725420661218,-803.37,0.00027945,2]
[337089417,1725420661228,-500.0,0.00027945,2]
[337089418,1725420661238,-500.0,0.00027945,2]
[337089419,1725420661249,-500.0,0.00027945,2]
[337089420,1725420661260,-500.0,0.00027945,2]
[337089421,1725420661271,-606.86,0.00027945,2]
[337089422,1725420661281,-500.0,0.00027945,2]
[337089423,1725420661292,-500.0,0.00027945,2]
[337089424,1725420661301,-500.0,0.00027945,2]
[337089425,1725420661311,-500.0,0.00027945,2]
[337089426,1725420661321,-500.0,0.00027945,2]
[337089427,1725420661330,-1132.32,0.00027945,2]
[337089428,1725420661340,-500.0,0.00027945,2]
[337089429,1725420661349,-636.94,0.00027945,2]
[337089430,1725420661358,-500.0,0.00027945,2]
[337089431,1725420661368,-500.0,0.00027945,2]
[337089432,1725420661380,-5252.83,0.00027945,2]
[337089433,1725420661390,-500.0,0.00027945,2]
[337089434,1725420661400,-576.63,0.00027945,2]
[337089435,1725420661409,-513.08408579,0.00027945,2]
[337089436,1725420661419,-901.7,0.00027945,2]
[337089437,1725420661431,-500.0,0.00027945,2]
[337089438,1725420661440,-1751.72,0.00027945,2]
[337089439,1725420661450,-500.0,0.00027945,2]
[337089440,1725420661461,-500.0,0.00027945,2]
[337089441,1725420661470,-500.0,0.00027945,2]
[337089442,1725420661481,-1256.59,0.00027945,2]
[337089443,1725420661491,-500.0,0.00027945,2]
[337089444,1725420661505,-500.0,0.00027945,2]
[337089445,1725420661514,-500.0,0.00027945,2]
[337089446,1725420661523,-1139.08,0.00027945,2]
[337089447,1725420661533,-1745.83,0.00027945,2]
[337089448,1725420661544,-500.0,0.00027945,2]
[337089449,1725420661554,-500.0,0.00027945,2]
[337089450,1725420661563,-534.92709385,0.00027945,2]
[337089451,1725420661572,-500.0,0.00027945,2]
[337089452,1725420661582,-2000.0,0.00028,7]
[337089453,1725420661592,-1343.81,0.00028,14]
[337089454,1725420661602,-500.0,0.00028,2]
[337089455,1725420661611,-400.0,0.00028,60]
[337089456,1725420661621,-1664.813552,0.00028038,2]
[337089457,1725420661630,-160.0,0.00028172,7]
[337089458,1725420661639,-500.0,0.00028219,2]
[337089459,1725420661649,-500.0,0.00028219,2]
[337089460,1725420661658,-500.0,0.00028219,2]
[337089461,1725420661667,-500.0,0.00028219,2]
[337089462,1725420661676,-500.0,0.00028219,2]
[337089463,1725420661685,-500.0,0.00028219,2]
[337089464,1725420661694,-500.0,0.00028219,2]
[337089465,1725420661703,-500.0,0.00028219,2]
[337089466,1725420661712,-500.0,0.00028219,2]
[337089467,1725420661722,-500.0,0.00028219,2]
[337089468,1725420661732,-500.0,0.00028219,2]
[337089469,1725420661742,-500.0,0.00028219,2]
[337089470,1725420661752,-500.0,0.00028219,2]
[337089471,1725420661761,-500.0,0.00028219,2]
[337089472,1725420661770,-500.0,0.00028219,2]
[337089473,1725420661779,-500.0,0.00028219,2]
[337089474,1725420661789,-500.0,0.00028219,2]
[337089475,1725420661798,-500.0,0.00028219,2]
[337089476,1725420661807,-500.0,0.00028219,2]
[337089477,1725420661817,-500.0,0.00028219,2]
[337089478,1725420661827,-500.0,0.00028219,2]
[337089479,1725420661836,-500.0,0.00028219,2]
[337089480,1725420661846,-500.0,0.00028219,2]
[337089481,1725420661856,-500.0,0.00028219,2]
[337089482,1725420661865,-500.0,0.00028219,2]
[337089483,1725420661874,-500.0,0.00028219,2]
[337089484,1725420661884,-500.0,0.00028219,2]
[337089485,1725420661893,-768.18,0.00028219,2]
[337089486,1725420661904,-500.0,0.00028219,2]
[337089487,1725420661914,-500.0,0.00028219,2]
[337089488,1725420661926,-500.0,0.00028219,2]
[337089489,1725420661937,-500.0,0.00028219,2]
[337089490,1725420661948,-500.0,0.00028219,2]
[337089491,1725420661957,-500.0,0.00028219,2]
[337089492,1725420661966,-500.0,0.00028219,2]
[337089493,1725420661976,-500.0,0.00028219,2]
[337089494,1725420661985,-500.0,0.00028219,2]
[337089495,1725420661994,-189.63223905,0.00028219,2]
[337089496,1725420662007,-500.0,0.00028219,2]
[337089497,1725420662016,-500.0,0.00028219,2]
[337089498,1725420662025,-500.0,0.00028219,2]
[337089499,1725420662035,-500.0,0.00028219,2]
[337089500,1725420662121,-500.0,0.00028219,2]
[337089501,1725420662130,-500.0,0.00028219,2]
[337089502,1725420662139,-500.0,0.00028219,2]
[337089503,1725420662149,-500.0,0.00028219,2]
[337089504,1725420662158,-500.0,0.00028219,2]
[337089505,1725420662167,-1082.29,0.00028219,2]
[337089506,1725420662177,-500.0,0.00028219,2]
[337089507,1725420662187,-686.25,0.00028219,2]
[337089508,1725420662197,-680.2,0.00028219,2]
[337089509,1725420662206,-500.0,0.00028219,2]
[337089510,1725420662215,-500.0,0.00028219,2]
[337089511,1725420662224,-500.0,0.00028219,2]
[337089512,1725420662233,-500.0,0.00028219,2]
[337089513,1725420662243,-509.16026836,0.00028219,2]
[337089514,1725420662254,-1000.0,0.00028219,60]
[337089515,1725420662263,-500.0,0.00028219,2]
[337089516,1725420662272,-592.32,0.00028219,2]
[337089517,1725420662282,-200.0,0.00028219,2]
[337089518,1725420662291,-500.0,0.00028219,2]
[337089519,1725420662301,-500.0,0.00028219,2]
[337089520,1725420662312,-500.0,0.00028219,2]
[337089521,1725420662322,-520.81287131,0.00028219,2]
[337089522,1725420662332,-500.0,0.00028219,2]
[337089523,1725420662343,-239.78674004,0.00028219,2]
[337089524,1725420662353,-674.32,0.00028219,2]
[337089525,1725420662364,-4019.26,0.00028219,2]
[337089526,1725420662376,-500.0,0.00028219,2]
[337089527,1725420662391,-675.84,0.00028219,2]
[337089528,1725420662403,-367.65529217,0.00028219,2]
[337089529,1725420662413,-500.0,0.00028219,2]
[337089530,1725420662424,-500.0,0.00028219,2]
[337089531,1725420662434,-500.0,0.00028219,2]
[337089532,1725420662444,-500.0,0.00028219,2]
[337089533,1725420662456,-500.0,0.00028219,2]
[337089534,1725420662466,-754.15,0.00028219,2]
[337089535,1725420662476,-500.0,0.00028219,2]
[337089536,1725420662487,-500.0,0.00028219,2]
[337089537,1725420662500,-609.64,0.00028219,2]
[337089538,1725420662509,-500.0,0.00028219,2]
[337089539,1725420662520,-500.0,0.00028219,2]
[337089540,1725420662530,-654.89,0.00028219,2]
[337089541,1725420662541,-500.0,0.00028219,2]
[337089542,1725420662552,-500.0,0.00028219,2]
[337089543,1725420662563,-500.0,0.00028219,2]
[337089544,1725420662572,-511.88,0.00028219,2]
[337089545,1725420662581,-500.0,0.00028219,2]
[337089546,1725420662590,-500.0,0.00028219,2]
[337089547,1725420662599,-500.0,0.00028219,2]
[337089548,1725420662608,-500.0,0.00028219,2]
[337089549,1725420662617,-500.0,0.00028219,2]
[337089550,1725420662626,-500.0,0.00028219,2]
[337089551,1725420662635,-500.0,0.00028219,2]
[337089552,1725420662645,-500.0,0.00028219,2]
[337089553,1725420662654,-500.0,0.00028219,2]
[337089554,1725420662663,-500.0,0.00028219,2]
[337089555,1725420662673,-500.0,0.00028219,2]
[337089556,1725420662682,-731.93,0.00028219,2]
[337089557,1725420662691,-500.0,0.00028219,2]
[337089558,1725420662700,-500.0,0.00028219,2]
[337089559,1725420662709,-500.0,0.00028219,2]
[337089560,1725420662719,-555.67,0.00028219,2]
[337089561,1725420662728,-534.31,0.00028219,2]
[337089562,1725420662738,-365.85740521,0.00028219,2]
[337089563,1725420662748,-2911.16,0.00028219,2]
[337089564,1725420662757,-500.0,0.00028219,2]
[337089565,1725420662767,-500.0,0.00028219,2]
[337089566,1725420662776,-500.0,0.00028219,2]
[337089567,1725420662786,-500.0,0.00028219,2]
[337089568,1725420662796,-500.0,0.00028219,2]
[337089569,1725420662806,-500.0,0.00028219,2]
[337089570,1725420662815,-500.0,0.00028219,2]
[337089571,1725420662825,-500.0,0.00028219,2]
[337089572,1725420662835,-500.0,0.00028219,2]
[337089573,1725420662844,-500.0,0.00028219,2]
[337089574,1725420662854,-500.0,0.00028219,2]
[337089575,1725420662864,-500.0,0.00028219,2]
[337089576,1725420662873,-500.0,0.00028219,2]
[337089577,1725420662883,-1427.1,0.00028219,2]
[337089578,1725420662892,-500.0,0.00028219,2]
[337089579,1725420662902,-500.0,0.00028219,2]
[337089580,1725420662911,-500.0,0.00028219,2]
[337089581,1725420662920,-500.0,0.00028219,2]
[337089582,1725420662929,-525.12358338,0.00028219,2]
[337089583,1725420662939,-522.27786338,0.00028219,2]
[337089584,1725420662948,-500.0,0.00028219,2]
[337089585,1725420662957,-500.0,0.00028219,2]
[337089586,1725420662966,-881.16,0.00028219,2]
[337089587,1725420662976,-500.0,0.00028219,2]
[337089588,1725420662985,-500.0,0.00028219,2]
[337089589,1725420662994,-706.4,0.00028219,2]
[337089590,1725420663003,-524.63,0.00028219,2]
[337089591,1725420663013,-500.0,0.00028219,2]
[337089592,1725420663022,-500.0,0.00028219,2]
[337089593,1725420663033,-500.0,0.00028219,2]
[337089594,1725420663042,-500.0,0.00028219,2]
[337089595,1725420663051,-500.0,0.00028219,2]
[337089596,1725420663060,-500.0,0.00028219,2]
[337089597,1725420663070,-500.0,0.00028219,2]
[337089598,1725420663085,-500.0,0.00028219,2]
[337089599,1725420663096,-500.0,0.00028219,2]
[337089600,1725420663108,-500.0,0.00028219,2]
[337089601,1725420663118,-2009.2,0.00028219,2]
[337089602,1725420663128,-695.98,0.00028219,2]
[337089603,1725420663138,-487.02210113,0.00028219,2]
[337089604,1725420663149,-500.0,0.00028219,2]
[337089605,1725420663159,-500.0,0.00028219,2]
[337089606,1725420663169,-500.0,0.00028219,2]
[337089607,1725420663179,-896.76,0.00028219,2]
[337089608,1725420663189,-500.0,0.00028219,2]
[337089609,1725420663200,-500.0,0.00028219,2]
[337089610,1725420663210,-1155.59,0.00028219,2]
[337089611,1725420663220,-500.0,0.00028219,2]
[337089612,1725420663230,-500.0,0.00028219,2]
[337089613,1725420663242,-500.0,0.00028219,2]
[337089614,1725420663253,-592.51,0.00028219,2]
[337089615,1725420663263,-500.0,0.00028219,2]
[337089616,1725420663273,-791.9,0.00028219,2]
[337089617,1725420663283,-547.68,0.00028219,2]
[337089618,1725420663293,-271.31139437,0.00028219,2]
[337089619,1725420663305,-500.0,0.00028219,2]
[337089620,1725420663315,-500.0,0.00028219,2]
[337089621,1725420663326,-500.0,0.00028219,2]
[337089622,1725420663337,-500.0,0.00028219,2]
[337089623,1725420663348,-500.0,0.00028219,2]
[337089624,1725420663358,-500.0,0.00028219,2]
[337089625,1725420663368,-528.92222228,0.00028219,2]
[337089626,1725420663380,-500.0,0.00028219,2]
[337089627,1725420663392,-500.0,0.00028219,2]
[337089628,1725420663401,-500.0,0.00028219,2]
[337089629,1725420663411,-500.0,0.00028219,2]
[337089630,1725420663421,-500.0,0.00028219,2]
[337089631,1725420663431,-500.0,0.00028219,2]
[337089632,1725420663440,-500.0,0.00028219,2]
[337089633,1725420663450,-642.42,0.00028219,2]
[337089634,1725420663463,-500.0,0.00028219,2]
[337089635,1725420663473,-500.0,0.00028219,2]
[337089636,1725420663482,-467.94931955,0.00028219,2]
[337089637,1725420663492,-1249.32,0.00028219,2]
[337089638,1725420663503,-500.0,0.00028219,2]
[337089639,1725420663513,-500.0,0.00028219,2]
[337089640,1725420663522,-500.0,0.00028219,2]
[337089641,1725420663532,-500.0,0.00028219,2]
[337089642,1725420663542,-500.0,0.00028219,2]
[337089643,1725420663551,-500.0,0.00028219,2]
[337089644,1725420663561,-500.0,0.00028219,2]
[337089645,1725420663571,-500.0,0.00028219,2]
[337089646,1725420663580,-500.0,0.00028219,2]
[337089647,1725420663590,-2356.93,0.00028219,2]
[337089648,1725420663600,-500.0,0.00028219,2]
[337089649,1725420663610,-500.0,0.00028219,2]
[337089650,1725420663619,-500.0,0.00028219,2]
[337089651,1725420663629,-500.0,0.00028219,2]
[337089652,1725420663720,-500.0,0.00028219,2]
[337089653,1725420663731,-500.0,0.00028219,2]
[337089654,1725420663740,-834.19,0.00028219,2]
[337089655,1725420663751,-500.0,0.00028219,2]
[337089656,1725420663761,-500.0,0.00028219,2]
[337089657,1725420663770,-500.0,0.00028219,2]
[337089658,1725420663780,-500.0,0.00028219,2]
[337089659,1725420663789,-500.0,0.00028219,2]
[337089660,1725420663798,-500.0,0.00028219,2]
[337089661,1725420663808,-500.0,0.00028219,2]
[337089662,1725420663817,-500.0,0.00028219,2]
[337089663,1725420663827,-958.5,0.00028219,2]
[337089664,1725420663837,-832.71,0.00028219,2]
[337089665,1725420663847,-500.0,0.00028219,2]
[337089666,1725420663856,-524.03334487,0.00028219,2]
[337089667,1725420663866,-500.0,0.00028219,2]
[337089668,1725420663877,-500.0,0.00028219,2]
[337089669,1725420663887,-652.3,0.00028219,2]
[337089670,1725420663897,-514.92897345,0.00028219,2]
[337089671,1725420663907,-500.0,0.00028219,2]
[337089672,1725420663917,-901.33,0.00028219,2]
[337089673,1725420663929,-500.0,0.00028219,2]
[337089674,1725420663939,-500.0,0.00028219,2]
[337089675,1725420663958,-1011.35,0.00028219,2]
[337089676,1725420663970,-2862.9,0.00028219,2]
[337089677,1725420663981,-2987.56,0.00028219,2]
[337089678,1725420663991,-500.0,0.00028219,2]
[337089679,1725420664005,-500.0,0.00028219,2]
[337089680,1725420664015,-448.70415423,0.00028219,2]
[337089681,1725420664025,-3402.81,0.00028219,2]
[337089682,1725420664037,-500.0,0.00028219,2]
[337089683,1725420664049,-1811.33,0.00028219,2]
[337089684,1725420664060,-500.0,0.00028219,2]
[337089685,1725420664070,-500.0,0.00028219,2]
[337089686,1725420664082,-612.22,0.00028219,2]
[337089687,1725420664093,-1243.1,0.00028219,2]
[337089688,1725420664104,-717.23,0.00028219,2]
[337089689,1725420664114,-4418.31,0.00028219,2]
[337089690,1725420664125,-500.0,0.00028219,2]
[337089691,1725420664135,-115684.14,0.00028219,2]
[337089692,1725420664146,-55826.22,0.00028219,2]
[337089693,1725420664156,-271.7184673,0.00028219,2]
[337089694,1725420664166,-500.0,0.00028219,2]
[337089695,1725420664177,-500.0,0.00028219,2]
[337089696,1725420664188,-500.0,0.00028219,2]
[337089697,1725420664199,-500.0,0.00028219,2]
[337089698,1725420664210,-500.0,0.00028219,2]
[337089699,1725420664220,-500.0,0.00028219,2]
[337089700,1725420664230,-500.0,0.00028219,2]
[337089701,1725420664240,-6301.07,0.00028219,2]
[337089702,1725420664254,-26324.52,0.00028219,2]
[337089703,1725420664264,-636.47,0.00028219,2]
[337089704,1725420664275,-500.0,0.00028219,2]
[337089705,1725420664285,-1916.51,0.00028219,2]
[337089706,1725420664295,-500.0,0.00028219,2]
[337089707,1725420664305,-500.0,0.00028219,2]
[337089708,1725420664315,-823.36,0.00028219,2]
[337089709,1725420664324,-617.81,0.00028219,2]
[337089710,1725420664335,-1701.17,0.00028219,2]
[337089711,1725420664344,-729.84,0.00028219,2]
[337089712,1725420664354,-500.0,0.00028219,2]
[337089713,1725420664364,-500.0,0.00028219,2]
[337089714,1725420664375,-500.0,0.00028219,2]
[337089715,1725420664390,-500.0,0.00028219,2]
[337089716,1725420664400,-712.75,0.00028219,2]
[337089717,1725420664411,-500.0,0.00028219,2]
[337089718,1725420664421,-500.0,0.00028219,2]
[337089719,1725420664431,-500.0,0.00028219,2]
[337089720,1725420664440,-500.0,0.00028219,2]
[337089721,1725420664449,-514.48716242,0.00028219,2]
[337089722,1725420664461,-1160.46,0.00028219,2]
[337089723,1725420664472,-1329.1,0.00028219,2]
[337089724,1725420664482,-1898.01,0.00028219,2]
[337089725,1725420664491,-500.0,0.00028219,2]
[337089726,1725420664502,-2729.74,0.00028219,2]
[337089727,1725420664512,-500.0,0.00028219,2]
[337089728,1725420664522,-500.0,0.00028219,2]
[337089729,1725420664532,-500.0,0.00028219,2]
[337089730,1725420664542,-2159.38,0.00028219,2]
[337089731,1725420664554,-1592.01,0.00028219,2]
[337089732,1725420664565,-500.0,0.00028219,2]
[337089733,1725420664574,-6188.78,0.00028219,2]
[337089734,1725420664585,-500.0,0.00028219,2]
[337089735,1725420664596,-4210.31,0.00028219,2]
[337089736,1725420664605,-1529.25,0.00028219,2]
[337089737,1725420664615,-729.82,0.00028219,2]
[337089738,1725420664627,-10461.88,0.00028219,2]
[337089739,1725420664637,-500.0,0.00028219,2]
[337089740,1725420664649,-1280.26,0.00028219,2]
[337089741,1725420664659,-1560.58,0.00028219,2]
[337089742,1725420664669,-7136.97,0.00028219,2]
[337089743,1725420664681,-500.0,0.00028219,2]
[337089744,1725420664692,-500.0,0.00028219,2]
[337089745,1725420664704,-500.0,0.00028219,2]
[337089746,1725420664714,-500.0,0.00028219,2]
[337089747,1725420664724,-500.0,0.00028219,2]
[337089748,1725420664736,-1328.68,0.00028219,2]
[337089749,1725420664746,-929.51,0.00028219,2]
[337089750,1725420664758,-3077.96,0.00028219,2]
[337089751,1725420664767,-683.0,0.00028219,2]
[337089752,1725420664778,-500.0,0.00028219,2]
[337089753,1725420664789,-11939.04,0.00028219,2]
[337089754,1725420664800,-500.0,0.00028219,2]
[337089755,1725420664811,-255.99737354,0.00028219,2]
[337089756,1725420664823,-500.0,0.00028219,2]
[337089757,1725420664835,-1182.99,0.00028219,2]
[337089758,1725420664846,-1259.14,0.00028219,2]
[337089759,1725420664857,-500.0,0.00028219,2]
[337089760,1725420664869,-13600.34,0.00028219,2]
[337089761,1725420664880,-500.0,0.00028219,2]
[337089762,1725420664890,-1155.31,0.00028219,2]
[337089763,1725420664901,-500.0,0.00028219,2]
[337089764,1725420664911,-851.0,0.00028219,2]
[337089765,1725420664922,-500.0,0.00028219,2]
[337089766,1725420664931,-1763.89,0.00028219,2]
[337089767,1725420664942,-756.04,0.00028219,2]
[337089768,1725420664952,-500.0,0.00028219,2]
[337089769,1725420664963,-652.71,0.00028219,2]
[337089770,1725420664974,-647.88,0.00028219,2]
[337089771,1725420664984,-500.0,0.00028219,2]
[337089772,1725420664994,-4853.04,0.00028219,2]
[337089773,1725420665007,-963.22,0.00028219,2]
[337089774,1725420665023,-500.0,0.00028219,2]
[337089775,1725420665034,-1079.72,0.00028219,2]
[337089776,1725420665045,-500.0,0.00028219,2]
[337089777,1725420665056,-500.0,0.00028219,2]
[337089778,1725420665067,-500.0,0.00028219,2]
[337089779,1725420665077,-500.0,0.00028219,2]
[337089780,1725420665087,-500.0,0.00028219,2]
[337089781,1725420665097,-803.37,0.00028219,2]
[337089782,1725420665106,-500.0,0.00028219,2]
[337089783,1725420665116,-500.0,0.00028219,2]
[337089784,1725420665128,-500.0,0.00028219,2]
[337089785,1725420665138,-500.0,0.00028219,2]
[337089786,1725420665148,-606.86,0.00028219,2]
[337089787,1725420665158,-500.0,0.00028219,2]
[337089788,1725420665167,-500.0,0.00028219,2]
[337089789,1725420665177,-500.0,0.00028219,2]
[337089790,1725420665187,-500.0,0.00028219,2]
[337089791,1725420665197,-500.0,0.00028219,2]
[337089792,1725420665207,-1132.32,0.00028219,2]
[337089793,1725420665322,-500.0,0.00028219,2]
[337089794,1725420665333,-636.94,0.00028219,2]
[337089795,1725420665343,-500.0,0.00028219,2]
[337089796,1725420665355,-500.0,0.00028219,2]
[337089797,1725420665367,-5252.83,0.00028219,2]
[337089798,1725420665378,-500.0,0.00028219,2]